Cogmind - Beta 17.1 @@@ ROGUE MODE // 2026.08.17 @ 11:12:22 Player: H3-MLN Result: Sacrificed to X0-1V1 Performance ------------- Evolutions (0) 0 Regions Visited (1) 200 Robots Destroyed (16) 80 Value Destroyed (213) 213 Prototype IDs (0) 0 Alien Tech Used (0) 0 Bonus (0) 0 TOTAL SCORE: 493 Bonus ------- None Cogmind --------- Core Integrity 0/250 Matter 290/300 Energy 250/250 System Corruption 0% Temperature Cool (0) Movement Treading (160) Location -10/Materials Parts ------- > --- POWER (1) -------- Ion Engine > --- PROPULSION (2) --- Light Treads Light Treads > --- UTILITY (2) ------ Large Storage Unit Improved Terrain Scanner > --- WEAPON (2) ------- Backup Laser I Backup Laser I > --- INVENTORY (15) --- Light Ion Engine Light Treads Light Treads Wheel Compact Wheel High-capacity Matter Pod (200) Transport Network Coupler Hacking Suite Assault Rifle Assault Rifle Datajack Peak State ------------ > --- POWER ------------ Light Ion Engine > --- PROPULSION ------- Light Treads Light Treads > --- UTILITY ---------- Small Storage Unit Improved Terrain Scanner > --- WEAPON ----------- Assault Rifle Light Assault Rifle > --- INVENTORY -------- Ion Engine Light Treads Wheel Compact Wheel Compact Wheel High-capacity Matter Pod Hacking Suite Light Assault Rifle [Rating: 10] Favorites ----------- Power Ion Engine Engine Ion Engine Propulsion Light Treads Treads Light Treads Wheel Wheel Utility Improved Terrain Scanner Device Improved Terrain Scanner Storage Small Storage Unit Weapon Backup Laser I Energy Gun Backup Laser I Ballistic Gun Light Assault Rifle Build | -11 -10 ------- Run | Yrd Mat Slots Evolved . | . . Power . | . . Propulsion . | . . Utility . | . . Weapon . | . . Parts Attached 10 | 7 3 Power 2 | 1 1 Engine 2 | 1 1 Core . | . . Reactor . | . . Propulsion 3 | 2 1 Treads 2 | 2 . Leg . | . . Wheel 1 | . 1 Hover . | . . Flight . | . . Utility 3 | 2 1 Device 1 | 1 . Storage 2 | 1 1 Processor . | . . Hackware . | . . Protection . | . . Artifact . | . . Weapon 2 | 2 . Energy Gun . | . . Energy Cannon . | . . Ballistic Gun 2 | 2 . Ballistic Cannon . | . . Launcher . | . . Special Weapon . | . . Impact Weapon . | . . Slashing Weapon . | . . Piercing Weapon . | . . Special Melee Weapon . | . . Unidentified Prototypes . | . . Parts Lost . | . . Power . | . . Propulsion . | . . Utility . | . . Weapon . | . . Highest Loss Streak . | . . To Critical Strikes . | . . Average Backups 7 | 2 7 Power . | . 1 Propulsion 2 | 1 3 Utility 2 | . 2 Weapon 1 | . 1 Tool/Special . | . . Unused Backups 10 | . 10 Power . | . . Propulsion 4 | . 4 Utility 3 | . 3 Weapon 2 | . 2 Tool/Special 1 | . 1 Average Slot Usage (%) 100 | . 100 Engine 14 | . 14 Treads 19 | . 19 Wheel 8 | . 8 Device 14 | . 14 Storage 14 | . 14 Energy Gun 14 | . 14 Ballistic Gun 13 | . 13 Peak Build Rating 10 | 9 10 Average Rating 9 | 5 9 On Entrance 4 | . 9 Avg Prop Armor Cover (%) 13 | . 13 Naked Turns . | . . Heaviest Build 28 | 12 28 Greatest Support 40 | 40 40 Greatest Overweight (x) 2 | . 2 Average Overweight (x) . | . . Largest Inventory Capacity 15 | 8 15 Average Capacity 9 | 7 10 Most Carried 11 | 5 11 Average Carried 7 | 2 7 Final Capacity 15 | 8 15 Final Carried 11 | 5 11 Class Distribution -------------------- 100% | Mutant Dominant Class ---------------- Mutant | -10/Materials Resources | -11 -10 ----------- Run | Yrd Mat Matter Collected 608 | 310 298 Remotely . | . . Salvage Created 480 | 140 340 Parts 37 | 6 31 Haulers Intercepted 2 | . 2 Recyclers Shooed . | . . Parts Field Recycled . | . . Retrieved Matter . | . . Parts Self-Destructed . | . . Prevented . | . . Parts Restored . | . . Kills | -11 -10 ------- Run | Yrd Mat Combat Hostiles Destroyed 8 | . 8 Guns 8 | . 8 Classes Destroyed 7 | 2 5 Tunneler 2 | 2 . Hauler 2 | . 2 Recycler 1 | 1 . Operator 1 | . 1 Watcher 2 | . 2 Swarmer 6 | . 6 Grunt 2 | . 2 Best Kill Streak 3 | 2 3 Combat Bots Only 3 | . 3 Max Kills in Single Turn 1 | 1 1 Gunslinging . | . . Exploded . | . . Melee . | . . Uniques/NPCs Destroyed . | . . Combat | -11 -10 -------- Run | Yrd Mat Hostile Shots Fired 39 | . 39 Missed 13 | . 13 Hits 26 | . 26 Projectile 26 | . 26 Critical Strikes 1 | . 1 Damage Taken 254 | . 254 Core 101 | . 101 Absorbed by Shields . | . . Core Remaining (%) 100 | 100 . Volleys Fired 44 | 10 34 Largest 2 | 2 2 Hottest 60 | 40 60 Shots Fired 88 | 20 68 Gun 88 | 20 68 Cannon . | . . Launcher . | . . Special . | . . Kinetic 54 | 20 34 Thermal 34 | . 34 Explosive . | . . Electromagnetic . | . . Robot Hit Streak 8 | 4 8 Robot Miss Streak 4 | 1 4 Penetration Max . | . . Secondary Targets 1 | . 1 Max Gunslinging Chain 1 | . 1 Shots Hit Robots 56 | 13 43 Core Hits 25 | 4 21 Critical Kills 1 | . 1 Critical Parts Destroyed 1 | 1 . Critical Strikes 2 | 1 1 Destroy 2 | 1 1 Melee Attacks . | . . Impact . | . . Slashing . | . . Piercing . | . . Sneak Attacks . | . . Combat Hostiles . | . . Follow-up Attacks . | . . Damage Inflicted 597 | 140 457 Guns 597 | 140 457 Cannons . | . . Explosions . | . . Melee . | . . Ramming . | . . Kinetic 396 | 140 256 Thermal 201 | . 201 Explosive . | . . Electromagnetic . | . . Impact . | . . Slashing . | . . Piercing . | . . Highest Corruption . | . . Average Corruption . | . . Corruption Purged . | . . Corruption Blocked . | . . Overload Shots . | . . Overflow Damage . | . . Projectiles . | . . Explosions . | . . Melee . | . . Knockbacks . | . . Impact . | . . Kinetic . | . . Secondary . | . . Self-Inflicted Damage . | . . Shots . | . . Rammed . | . . Targets Rammed . | . . Kicked . | . . Crushed . | . . Highest Temperature 9 | . 9 Average Temperature 8 | . 8 Received Heat Transfer 54 | . 54 Siege Activations . | . . Martial Activations . | . . Shielding Activations . | . . Robots Disrupted . | . . Combat Hostiles . | . . Robots Corrupted . | . . Combat Hostiles . | . . Parts Fried . | . . Impact Corruptions . | . . Robots Melted . | . . Combat Hostiles . | . . Parts Melted 3 | . 3 Heat Transferred 814 | . 814 Parts Sabotaged . | . . Parts Stolen . | . . Parts Stripped . | . . Power Chain Reactions . | . . Alert | -11 -10 ------- Run | Yrd Mat Maximum Alert Level . | . . Low Security (%) 100 | 100 100 Level 1 . | . . Level 2 . | . . Level 3 . | . . Level 4 . | . . Level 5 . | . . High Security . | . . Max Security . | . . Peak Influence 115 | 5 115 Initial . | . . Average 26 | . 31 Influence Increases 283 | 15 268 Destroy 0b10 Robot/C 160 | . 160 Destroy 0b10 Robot/NC 40 | 15 25 Destroy Leader 38 | . 38 Successful Hack 30 | . 30 Lose Combat Pursuer 15 | . 15 Influence Decreases 193 | 15 178 Time Decay 193 | 15 178 Squads Dispatched . | . . Investigation . | . . Extermination . | . . Reinforcement . | . . Assault . | . . Garrison . | . . Intercept . | . . Searches Triggered . | . . Construction Impeded . | . . Haulers Reinforced . | . . Active Scanning Responses . | . . Cargo Convoy Interrupts . | . . Stealth | -11 -10 --------- Run | Yrd Mat Distress Signals 2 | . 2 Communications Jammed . | . . Distress Signals . | . . Times Spotted 17 | . 17 Peak Tracking Total 4 | . 4 Tactical Retreats 1 | . 1 Traps | -11 -10 ------- Run | Yrd Mat Traps Triggered . | . . Indirectly . | . . Trap Hack Attempts . | . . Triggered . | . . Disarmed . | . . Reprogrammed . | . . Reused . | . . Traps Extracted . | . . Installed . | . . Triggered . | . . Machines | -11 -10 ---------- Run | Yrd Mat Machines Disabled . | . . Max in Single Turn . | . . Machines Repaired . | . . Machines Dismantled . | . . Machines Sabotaged . | . . Overloaded Fab Kills . | . . Hacking | -11 -10 --------- Run | Yrd Mat Machines Accessed 4 | . 4 Terminals 3 | . 3 Fabricators . | . . Repair Stations 1 | . 1 Recycling Units . | . . Scanalyzers . | . . Garrison Access . | . . Total Hacks 14 | . 14 Successful 6 | . 6 Failed 8 | . 8 Catastrophic 3 | . 3 Database Lockouts . | . . Manual 28 | . 28 Terminals 13 | . 13 Fabricators . | . . Repair Stations 1 | . 1 Recycling Units . | . . Scanalyzers . | . . Garrison Access . | . . Terminal Hacks 4 | . 4 Part Schematic 1 | . 1 Robot Schematic 1 | . 1 Robot Analysis 2 | . 2 Fabricator Hacks . | . . Repair Station Hacks 1 | . 1 Refit 1 | . 1 Recycling Unit Hacks . | . . Scanalyzer . | . . Garrison Access Hacks . | . . Unauthorized Hacks 1 | . 1 Terminals 1 | . 1 Botnet 1 | . 1 Fabricators . | . . Repair Stations . | . . Recycling Units . | . . Scanalyzers . | . . Garrison Access . | . . Data Cores Recovered 1 | . 1 Used . | . . Hacking Detections 4 | . 4 Full Trace Events . | . . Feedback Events . | . . Feedback Blocked . | . . Robot Schematics Acquired 1 | . 1 Robots Built . | . . Authchips . | . . Time . | . . Total Robot Build Rating . | . . Part Schematics Acquired 1 | . 1 Parts Built . | . . Authchips . | . . Time . | . . Total Part Build Rating . | . . Part Studies Acquired . | . . Parts Repaired . | . . Time . | . . Parts Recycled . | . . Recycled Matter . | . . Retrieved Matter . | . . Retrieved Components . | . . Parts Scanalyzed . | . . Part Schematics Acquired . | . . Parts Damaged . | . . Bothacking | -11 -10 ------------ Run | Yrd Mat Used RIF Installer . | . . Robots Hacked . | . . Non-combat . | . . Combat . | . . Robot Hacks Applied . | . . Relay Couplers Released . | . . Fabnet Peak Effective % . | . . Robots Rewired . | . . Allies Hacked . | . . Hacks Repelled . | . . Allies | -11 -10 -------- Run | Yrd Mat Total Allies . | . . Largest Group . | . . Highest-Rated Group . | . . Highest-Rated Ally . | . . Total Orders . | . . Ally Attacks . | . . Total Damage . | . . Kills . | . . Allies Corrupted . | . . Allies Melted . | . . Intel | -11 -10 ------- Run | Yrd Mat Active Infowar (turns) 640 | 27 613 Terrain 640 | 27 613 Robot Analysis Total 2 | . 2 Derelict Logs Recovered . | . . Drone Launches . | . . Drone Recoveries . | . . Exploration | -11 -10 ------------- Run | Yrd Mat Turns Passed 729 | 116 613 Spaces Moved 464 | 50 414 Core 7 | 7 . Treads 138 | 43 95 Legs . | . . Wheels 319 | . 319 Hover . | . . Flight . | . . Fastest Speed 50 | 50 95 Average Speed 116 | 144 112 Slowest Speed 160 | 160 160 Overloaded Moves . | . . Propulsion Burnouts . | . . Robots Hopped . | . . Potential Cave-ins . | . . Cave-ins Triggered . | . . Exploration Rate (%) 29 | 5 53 Regions Visited 1 Branch Regions . Pre-discovered Areas . | . . Known Exits Taken . | . . Unknown Exits Taken 1 | 1 . Scrap Searched . | . . Spaces Dug . | . . Terrain Destroyed . | . . Melee . | . . Projectile . | . . AOE . | . . Terrain Rammed . | . . Walls Destroyed . | . . Machines Disabled . | . . Actions | -11 -10 --------- Run | Yrd Mat Total 569 | 71 498 Wait 23 | . 23 Move 463 | 49 414 Hop . | . . Pick Up 18 | 5 13 Fast Attach 7 | 7 . Attach . | . . Detach . | . . Swap 4 | . 4 Drop 10 | . 10 Fire 44 | 10 34 Melee . | . . Ram . | . . Kick . | . . Crush . | . . Escape Stasis . | . . Rewire . | . . Trap . | . . Miscellaneous . | . . Route ------- -11/Scrapyard -10/Materials (discovered 2 exits: [*Mat] / [*Sub]) History --------- Turn | Location | Event 27 | -11/Scrapyard | Discovered new exit (range 16) 117 | -11/Scrapyard | Entered Materials 311 | -10/Materials | Build established: Mutant 322 | -10/Materials | Discovered new exit (range 16) 724 | -10/Materials | Discovered new exit (range 6) 730 | -10/Materials | Made a sacrifice at D.C.S.S. Altar Unit 730 | -10/Materials | Sacrificed to X0-1V1 Last Messages --------------- 00664_ T-07 Excavator is excavating. 00665_ Acquired Lgt. Treads. 00667_ U-05 Engineer lays Concrete. 00668_ U-05 Engineer builds a Wall. 00668_ K-01 Serf collects debris. 00669_ R-06 Scavenger collects Flight Unit. 00670_ K-01 Serf collects debris. 00674_ R-06 Scavenger collects Med. Storage Unit. 00675_ K-01 Serf collects debris. 00685_ Dropped Com. Wheel. 00687_ Dropped Wheel. 00690_ Acquired Assault Rifle. 00696_ R-06 Scavenger inserts Ion Engine into recycling unit. 00699_ R-06 Scavenger inserts Flight Unit into recycling unit. 00701_ Acquired Com. Wheel. 00702_ R-06 Scavenger inserts Med. Storage Unit into recycling unit. 00703_ Acquired Wheel. 00705_ R-06 Scavenger inserts Flight Unit into recycling unit. 00724_ EXIT=FOUND 00730_ Connecting with D.C.S.S. Altar Unit... Map ----- +----------------------------------------------------+ | ??????????????????????????????????? | | ??????????????????????????????????? | | ??????????????????????????????????? | | ??????????????????????????????????? | | ??????????????????????????????????? | | ??????????????????????????????????? | | ??????????????????????????????????? | | ???????????????????????????#?#????? | | ??????????????????????????????????? | | ????????????????#?????????????????? | | ??????????????????????????????????? | | ????????????????????#?????????????? | | ??????????????????????????????????? | | ??????????????????????????????????? | | ????????????????????????#??????? ?? | | ????????????????#####?############? | | ?????????????# # #? | | ?????????????# """ """ # #? | | ?????????????# """ """ # #? | | ???????????#?# """ """ # #? | | ?????????????# # #? | | ?????????##### # #? | | ????????## #? # #? | | ????????#< #??? ?# #? | | ????????## #+####+########+###### | | ?????? ?#X@ # | | ????????## # %% | | ?????????# %% | | ??????? ?# # ###+#########%#####+ | | ?????????##### # #??#=## ??? | | ?????????????#+# "" """ #??#*##???? | | ??????????? ???# "Y """ #??# ##? ?? | | ??????????? ???# "" """ #??# #????? | | ???????????????# ##?# ##??? | | ???????????????# """ #??# #????? | | ?????????? ??? # """ #??# #??? ? | | ???????????????# """ #??# #?? ?? | | ???????????????# #??#*#????? | | ???????????????###########?#[#???#? | | ?????? ??????????????#?#???#%###### | | ?????????????????#??#?#?####== | | ??????? ???""??????????##! =% | | ?????????????? ???#????#! | | ??????????????????????##! ######## | | ??????????????????????##! #?????? | | ????????????#??????????#! #????? | | ???????????????????#???##! #???# "" | | ??????????????#????#????####???# "" | | ??????????????????????##???????# "" | | ???????????????????????????????# | +----------------------------------------------------+ Best States ------------- Heat Dissipation 25 Energy Generation 10 Energy Capacity 250 Matter Stores 300 Matter Capacity 300 Sight Range 16 Terrain Scan Range 16 Terrain Scan Density 10 Evasion (%) 41 Recoil Reduction 2 Item Schematics ----------------- Huge Storage Unit | -10/Materials | Hacked Robot Schematics ------------------ M-13 Machinist | -10/Materials | Hacked Fabricated ------------ Nothing Repaired ---------- Nothing Studied --------- None Alien Tech Used ----------------- None Achievements -------------- None Challenges ------------ None Game ------ Seed ProjectileLightpackSteel Manual? 0 Play Time 00:20:55 Cumulative 1734.4 hours Start 2026.08.17 @ 10:30:13 End 2026.08.17 @ 11:12:22 Sessions 1 Manual Loads 0 Difficulty Rogue Special Mode None Game No. 525 Rogue 517 Adventurer 4 Explorer 4 Win Type - Total 68 Types 31/9/4/4/2/4/7/2/3/2 Lore% 96 Gallery% 95 Achievement% 91 Wizard Run 0 Options --------- Layout 0 ASCII 0 Keyboard 0 Movement Numpad Keybinds 0 Fullscreen 2 Font 18/SmallcapsGlow Map View 76x50 Zoom Use 0% Tactical HUD 1 Map Filters NONE Filters NONE Steam 1 RUN: bd2e1160-a711-4576-88ea-c1161885b658